lending/lending_fUSD_20250224
["ID","MTS","AMOUNT","RATE_DAILY","PERIOD"]
[354286408,1740393106654,-649.75,0.00017506,2]
[354286409,1740393106663,-547.93,0.00017506,2]
[354286410,1740393106673,-689.58,0.00017506,2]
[354286411,1740393106682,-685.53,0.00017506,2]
[354286412,1740393106692,-500.0,0.00017506,2]
[354286413,1740393106701,-500.0,0.00017506,2]
[354286414,1740393106710,-500.0,0.00017506,2]
[354286415,1740393106719,-500.0,0.00017506,2]
[354286416,1740393106729,-500.0,0.00017506,2]
[354286417,1740393106738,-770.75,0.00017506,2]
[354286418,1740393106747,-596.16,0.00017506,2]
[354286419,1740393106757,-1066.15,0.00017506,2]
[354286420,1740393106767,-939.56,0.00017506,2]
[354286421,1740393106776,-535.53,0.00017506,2]
[354286422,1740393106785,-1713.16,0.00017506,2]
[354286423,1740393106794,-999.11,0.00017506,2]
[354286424,1740393106804,-545.3,0.00017506,2]
[354286425,1740393106814,-988.44,0.00017506,2]
[354286426,1740393106825,-1914.59,0.00017506,2]
[354286427,1740393106835,-1771.19,0.00017506,2]
[354286428,1740393106845,-500.0,0.00017506,2]
[354286429,1740393106855,-4053.22,0.00017506,2]
[354286430,1740393106868,-857.92,0.00017506,2]
[354286431,1740393106877,-1114.15,0.00017506,2]
[354286432,1740393106886,-2047.21,0.00017506,2]
[354286433,1740393106895,-507.52,0.00017506,2]
[354286434,1740393106905,-760.3,0.00017506,2]
[354286435,1740393106914,-1134.98,0.00017506,2]
[354286436,1740393106923,-1537.05,0.00017506,2]
[354286437,1740393106932,-2359.95,0.00017506,2]
[354286438,1740393106943,-1103.35,0.00017506,2]
[354286439,1740393106952,-4184.04,0.00017506,2]
[354286440,1740393106962,-1851.33,0.00017506,2]
[354286441,1740393106972,-2354.25,0.00017506,2]
[354286442,1740393106981,-613.1,0.00017506,2]
[354286443,1740393106991,-971.17,0.00017506,2]
[354286444,1740393106999,-3563.69,0.00017506,2]
[354286445,1740393107009,-500.0,0.00017506,2]
[354286446,1740393107018,-2009.96,0.00017506,2]
[354286447,1740393107027,-500.0,0.00017506,2]
[354286448,1740393107036,-1543.4,0.00017506,2]
[354286449,1740393107045,-533.77,0.00017506,2]
[354286450,1740393107058,-2242.87,0.00017506,2]
[354286451,1740393107067,-633.74,0.00017506,2]
[354286452,1740393107077,-500.0,0.00017506,2]
[354286453,1740393107089,-1803.65,0.00017506,2]
[354286454,1740393107099,-2187.68,0.00017506,2]
[354286455,1740393107109,-728.65,0.00017506,2]
[354286456,1740393107118,-6441.69,0.00017506,2]
[354286457,1740393107128,-530.59,0.00017506,2]
[354286458,1740393107137,-552.52,0.00017506,2]
[354286459,1740393107146,-500.0,0.00017506,2]
[354286460,1740393107156,-1823.33,0.00017506,2]
[354286461,1740393107166,-580.19,0.00017506,2]
[354286462,1740393107176,-2359.28,0.00017506,2]
[354286463,1740393107185,-500.0,0.00017506,2]
[354286464,1740393107195,-6310.46,0.00017506,2]
[354286465,1740393107204,-1754.56,0.00017506,2]
[354286466,1740393107213,-1453.83,0.00017506,2]
[354286467,1740393107223,-2395.13,0.00017506,2]
[354286468,1740393107232,-500.0,0.00017506,2]
[354286469,1740393107242,-198.12790992,0.00017506,2]
[354286470,1740393107251,-500.0,0.00017506,2]
[354286471,1740393107260,-1729.98,0.00017506,2]
[354286472,1740393107270,-1530.26,0.00017506,2]
[354286473,1740393107280,-523.34,0.00017506,2]
[354286474,1740393107290,-1888.7,0.00017506,2]
[354286475,1740393107300,-887.15,0.00017506,2]
[354286476,1740393107310,-561.68,0.00017506,2]
[354286477,1740393107320,-1893.25,0.00017506,2]
[354286478,1740393107332,-1229.83,0.00017506,2]
[354286479,1740393107342,-1592.71,0.00017506,2]
[354286480,1740393107351,-1352.31,0.00017506,2]
[354286481,1740393107361,-2122.57,0.00017506,2]
[354286482,1740393107370,-1563.39,0.00017506,2]
[354286483,1740393107380,-500.0,0.00017506,2]
[354286484,1740393107390,-3181.44,0.00017506,2]
[354286485,1740393107400,-931.35,0.00017506,2]
[354286486,1740393107409,-1399.69,0.00017506,2]
[354286487,1740393107419,-1364.19,0.00017506,2]
[354286488,1740393107430,-1158.15,0.00017506,2]
[354286489,1740393107440,-947.59,0.00017506,2]
[354286490,1740393107450,-1055.82,0.00017506,2]
[354286491,1740393107459,-1743.38,0.00017506,2]
[354286492,1740393107469,-1124.16,0.00017506,2]
[354286493,1740393107479,-1245.15,0.00017506,2]
[354286494,1740393107489,-862.87,0.00017506,2]
[354286495,1740393107500,-737.22,0.00017506,2]
[354286496,1740393107509,-3379.84,0.00017506,2]
[354286497,1740393107519,-2190.52,0.00017506,2]
[354286498,1740393107529,-1993.18,0.00017506,2]
[354286499,1740393107539,-2255.32,0.00017506,2]
[354286500,1740393107548,-2112.38,0.00017506,2]
[354286501,1740393107558,-1406.66,0.00017506,2]
[354286502,1740393107568,-511.28,0.00017506,2]
[354286503,1740393107578,-1338.87,0.00017506,2]
[354286504,1740393107590,-1163.78,0.00017506,2]
[354286505,1740393107600,-899.89,0.00017506,2]
[354286506,1740393107610,-2575.6,0.00017506,2]
[354286507,1740393107620,-1931.36,0.00017506,2]
[354286508,1740393107630,-351.38263104,0.00017506,2]
[354286509,1740393107639,-3875.26,0.00017506,2]
[354286510,1740393107650,-714.88,0.00017506,2]
[354286511,1740393107660,-4627.1,0.00017506,2]
[354286512,1740393107670,-651.74,0.00017506,2]
[354286513,1740393107680,-2331.1,0.00017506,2]
[354286514,1740393107690,-794.55,0.00017506,2]
[354286515,1740393107700,-811.87,0.00017506,2]
[354286516,1740393107709,-1360.35,0.00017506,2]
[354286517,1740393107719,-757.29,0.00017506,2]
[354286518,1740393107729,-506.8,0.00017506,2]
[354286519,1740393107738,-1905.52,0.00017506,2]
[354286520,1740393107748,-500.0,0.00017506,2]
[354286521,1740393107758,-1012.51,0.00017506,2]
[354286522,1740393107768,-1832.68,0.00017506,2]
[354286523,1740393107778,-500.0,0.00017506,2]
[354286524,1740393107787,-1130.11,0.00017506,2]
[354286525,1740393107798,-500.0,0.00017506,2]
[354286526,1740393107807,-2153.01,0.00017506,2]
[354286527,1740393107817,-500.0,0.00017506,2]
[354286528,1740393107826,-1435.16,0.00017506,2]
[354286529,1740393107837,-2176.8,0.00017506,2]
[354286530,1740393107847,-199.49955698,0.00017506,2]
[354286531,1740393107858,-1895.66,0.00017506,2]
[354286532,1740393107871,-683.14,0.00017506,2]
[354286533,1740393107880,-500.0,0.00017506,2]
[354286534,1740393107890,-1239.34,0.00017506,2]
[354286535,1740393107901,-2117.99,0.00017506,2]
[354286536,1740393107910,-2225.26,0.00017506,2]
[354286537,1740393107920,-1435.64,0.00017506,2]
[354286538,1740393107929,-876.4,0.00017506,2]
[354286539,1740393107940,-1250.73,0.00017506,2]
[354286540,1740393107950,-1238.73,0.00017506,2]
[354286541,1740393107960,-1448.82,0.00017506,2]
[354286542,1740393107971,-1222.74,0.00017506,2]
[354286543,1740393107981,-500.0,0.00017506,2]
[354286544,1740393107991,-2133.06,0.00017506,2]
[354286545,1740393108001,-500.0,0.00017506,2]
[354286546,1740393108011,-902.39,0.00017506,2]
[354286547,1740393108021,-2952.34,0.00017506,2]
[354286548,1740393108032,-637.55,0.00017506,2]
[354286549,1740393108043,-1714.23,0.00017506,2]
[354286550,1740393108054,-1345.12,0.00017506,2]
[354286551,1740393108065,-1346.53,0.00017506,2]
[354286552,1740393108235,-1153.09,0.00017506,2]
[354286553,1740393108245,-500.0,0.00017506,2]
[354286554,1740393108255,-1050.72,0.00017506,2]
[354286555,1740393108265,-1549.23,0.00017506,2]
[354286556,1740393108274,-500.0,0.00017506,2]
[354286557,1740393108284,-2116.78,0.00017506,2]
[354286558,1740393108295,-1323.73,0.00017506,2]
[354286559,1740393108304,-1976.05,0.00017506,2]
[354286560,1740393108314,-968.02,0.00017506,2]
[354286561,1740393108324,-2709.27,0.00017506,2]
[354286562,1740393108335,-1417.13,0.00017506,2]
[354286563,1740393108345,-649.11,0.00017506,2]
[354286564,1740393108356,-517.98,0.00017506,2]
[354286565,1740393108366,-1383.1,0.00017506,2]
[354286566,1740393108375,-575.9,0.00017506,2]
[354286567,1740393108385,-639.53,0.00017506,2]
[354286568,1740393108395,-2137.13,0.00017506,2]
[354286569,1740393108405,-1329.85,0.00017506,2]
[354286570,1740393108415,-2522.02,0.00017506,2]
[354286571,1740393108425,-500.0,0.00017506,2]
[354286572,1740393108435,-1057.9,0.00017506,2]
[354286573,1740393108445,-927.18,0.00017527,2]
[354286574,1740393108455,-1000.0,0.00017534,6]
[354286575,1740393108464,-567.68,0.00017589,2]
[354286576,1740393108473,-931.01,0.00017589,2]
[354286577,1740393108482,-500.0,0.00017589,2]
[354286578,1740393108491,-500.0,0.00017589,2]
[354286579,1740393108501,-500.0,0.00017589,2]
[354286580,1740393108511,-500.0,0.00017589,2]
[354286581,1740393108520,-500.0,0.00017589,2]
[354286582,1740393108530,-500.0,0.00017589,2]
[354286583,1740393108539,-513.04,0.00017589,2]
[354286584,1740393108549,-352.82778733,0.00017589,2]
[354286585,1740393108559,-705.82,0.00017589,2]
[354286586,1740393108568,-500.0,0.00017589,2]
[354286587,1740393108578,-568.69,0.00017589,2]
[354286588,1740393108589,-500.0,0.00017589,2]
[354286589,1740393108600,-500.0,0.00017589,2]
[354286590,1740393108610,-613.91,0.00017589,2]
[354286591,1740393108620,-829.52,0.00017589,2]
[354286592,1740393108629,-614.79,0.00017589,2]
[354286593,1740393108639,-579.34,0.00017589,2]
[354286594,1740393108648,-656.83,0.00017589,2]
[354286595,1740393108658,-801.72,0.00017589,2]
[354286596,1740393108669,-500.0,0.00017589,2]
[354286597,1740393108679,-500.0,0.00017589,2]
[354286598,1740393108689,-778.26,0.00017589,2]
[354286599,1740393108700,-812.09,0.00017589,2]
[354286600,1740393108709,-563.47,0.00017589,2]
[354286601,1740393108719,-500.0,0.00017589,2]
[354286602,1740393108728,-594.42,0.00017589,2]
[354286603,1740393108738,-1017.59,0.00017589,2]
[354286604,1740393108748,-1173.0,0.00017589,2]
[354286605,1740393108757,-500.0,0.00017589,2]
[354286606,1740393108766,-985.36,0.00017589,2]
[354286607,1740393108776,-500.0,0.00017589,2]
[354286608,1740393108786,-714.1,0.00017589,2]
[354286609,1740393108795,-601.34,0.00017589,2]
[354286610,1740393108804,-1166.36,0.00017589,2]
[354286611,1740393108813,-500.0,0.00017589,2]
[354286612,1740393108822,-500.0,0.00017589,2]
[354286613,1740393108832,-655.58,0.00017589,2]
[354286614,1740393108841,-568.87,0.00017589,2]
[354286615,1740393108850,-500.0,0.00017589,2]
[354286616,1740393108860,-500.0,0.00017589,2]
[354286617,1740393108871,-817.86,0.00017589,2]
[354286618,1740393108880,-500.0,0.00017589,2]
[354286619,1740393108889,-560.28306539,0.00017589,2]
[354286620,1740393108899,-554.61,0.00017589,2]
[354286621,1740393108910,-607.13,0.00017589,2]
[354286622,1740393108919,-314.79217594,0.00017589,2]
[354286623,1740393108929,-299.279106,0.00017589,2]
[354286624,1740393108938,-587.42,0.00017589,2]
[354286625,1740393108947,-500.0,0.00017589,2]
[354286626,1740393108958,-500.0,0.00017589,2]
[354286627,1740393108967,-976.63,0.00017589,2]
[354286628,1740393108977,-758.07,0.00017589,2]
[354286629,1740393108986,-327.093108,0.00017589,2]
[354286630,1740393108995,-912.3,0.00017589,2]
[354286631,1740393109005,-966.44,0.00017589,2]
[354286632,1740393109014,-571.99,0.00017589,2]
[354286633,1740393109025,-583.89,0.00017589,2]
[354286634,1740393109035,-508.91,0.00017589,2]
[354286635,1740393109044,-500.0,0.00017589,2]
[354286636,1740393109054,-825.69,0.00017589,2]
[354286637,1740393109063,-500.0,0.00017589,2]
[354286638,1740393109073,-793.11,0.00017589,2]
[354286639,1740393109083,-568.54,0.00017589,2]
[354286640,1740393109092,-688.09,0.00017589,2]
[354286641,1740393109101,-500.0,0.00017589,2]
[354286642,1740393109111,-827.28,0.00017589,2]
[354286643,1740393109120,-500.0,0.00017589,2]
[354286644,1740393109131,-500.0,0.00017589,2]
[354286645,1740393109141,-500.0,0.00017589,2]
[354286646,1740393109150,-571.55,0.00017589,2]
[354286647,1740393109159,-501.11,0.00017589,2]
[354286648,1740393109168,-590.2,0.00017589,2]
[354286649,1740393109178,-500.0,0.00017589,2]
[354286650,1740393109189,-500.0,0.00017589,2]
[354286651,1740393109198,-500.0,0.00017589,2]
[354286652,1740393109208,-500.0,0.00017589,2]
[354286653,1740393109218,-413.40437687,0.00017589,2]
[354286654,1740393109228,-865.78,0.00017589,2]
[354286655,1740393109238,-500.0,0.00017589,2]
[354286656,1740393109247,-792.11,0.00017589,2]
[354286657,1740393109256,-502.07,0.00017589,2]
[354286658,1740393109265,-500.0,0.00017589,2]
[354286659,1740393109274,-732.07,0.00017589,2]
[354286660,1740393109284,-536.67,0.00017589,2]
[354286661,1740393109294,-772.46,0.00017589,2]
[354286662,1740393109304,-994.92,0.00017589,2]
[354286663,1740393109314,-719.27,0.00017589,2]
[354286664,1740393109323,-500.0,0.00017589,2]
[354286665,1740393109333,-732.94,0.00017589,2]
[354286666,1740393109343,-894.91,0.00017589,2]
[354286667,1740393109352,-835.59,0.00017589,2]
[354286668,1740393109362,-1034.89,0.00017589,2]
[354286669,1740393109372,-500.0,0.00017589,2]
[354286670,1740393109382,-1083.32,0.00017589,2]
[354286671,1740393109392,-649.75,0.00017589,2]
[354286672,1740393109402,-547.93,0.00017589,2]
[354286673,1740393109412,-689.58,0.00017589,2]
[354286674,1740393109421,-685.53,0.00017589,2]
[354286675,1740393109430,-500.0,0.00017589,2]
[354286676,1740393109440,-500.0,0.00017589,2]
[354286677,1740393109450,-500.0,0.00017589,2]
[354286678,1740393109459,-500.0,0.00017589,2]
[354286679,1740393109469,-500.0,0.00017589,2]
[354286680,1740393109478,-770.75,0.00017589,2]
[354286681,1740393109488,-596.16,0.00017589,2]
[354286682,1740393109497,-1066.15,0.00017589,2]
[354286683,1740393109507,-939.56,0.00017589,2]
[354286684,1740393109516,-535.53,0.00017589,2]
[354286685,1740393109526,-1713.16,0.00017589,2]
[354286686,1740393109535,-999.11,0.00017589,2]
[354286687,1740393109544,-545.3,0.00017589,2]
[354286688,1740393109554,-988.44,0.00017589,2]
[354286689,1740393109563,-1914.59,0.00017589,2]
[354286690,1740393109572,-1771.19,0.00017589,2]
[354286691,1740393109581,-500.0,0.00017589,2]
[354286692,1740393109590,-4053.22,0.00017589,2]
[354286693,1740393109599,-857.92,0.00017589,2]
[354286694,1740393109609,-1114.15,0.00017589,2]
[354286695,1740393109618,-507.52,0.00017589,2]
[354286696,1740393109627,-2047.21,0.00017589,2]
[354286697,1740393109637,-760.3,0.00017589,2]
[354286698,1740393109646,-1134.98,0.00017589,2]
[354286699,1740393109656,-1537.05,0.00017589,2]
[354286700,1740393109665,-2359.95,0.00017589,2]
[354286701,1740393109674,-1103.35,0.00017589,2]
[354286702,1740393109684,-4184.04,0.00017589,2]
[354286703,1740393109693,-1851.33,0.00017589,2]
[354286704,1740393109703,-2354.25,0.00017589,2]
[354286705,1740393109712,-613.1,0.00017589,2]
[354286706,1740393109721,-971.17,0.00017589,2]
[354286707,1740393109730,-3563.69,0.00017589,2]
[354286708,1740393109739,-500.0,0.00017589,2]
[354286709,1740393109750,-2009.96,0.00017589,2]
[354286710,1740393109759,-500.0,0.00017589,2]
[354286711,1740393109768,-1543.4,0.00017589,2]
[354286712,1740393109778,-533.77,0.00017589,2]
[354286713,1740393109787,-2242.87,0.00017589,2]
[354286714,1740393109796,-633.74,0.00017589,2]
[354286715,1740393109806,-500.0,0.00017589,2]
[354286716,1740393109816,-1803.65,0.00017589,2]
[354286717,1740393109826,-2187.68,0.00017589,2]
[354286718,1740393109837,-728.65,0.00017589,2]
[354286719,1740393109846,-6441.69,0.00017589,2]
[354286720,1740393109860,-530.59,0.00017589,2]
[354286721,1740393109869,-552.52,0.00017589,2]
[354286722,1740393109879,-1823.33,0.00017589,2]
[354286723,1740393109888,-500.0,0.00017589,2]
[354286724,1740393109899,-580.19,0.00017589,2]
[354286725,1740393109908,-2359.28,0.00017589,2]
[354286726,1740393109917,-500.0,0.00017589,2]
[354286727,1740393109926,-6310.46,0.00017589,2]
[354286728,1740393109937,-1754.56,0.00017589,2]
[354286729,1740393109947,-1453.83,0.00017589,2]
[354286730,1740393109956,-2395.13,0.00017589,2]
[354286731,1740393109965,-500.0,0.00017589,2]
[354286732,1740393109974,-500.0,0.00017589,2]
[354286733,1740393109984,-1729.98,0.00017589,2]
[354286734,1740393109993,-1530.26,0.00017589,2]
[354286735,1740393110002,-523.34,0.00017589,2]
[354286736,1740393110012,-1888.7,0.00017589,2]
[354286737,1740393110021,-887.15,0.00017589,2]
[354286738,1740393110031,-561.68,0.00017589,2]
[354286739,1740393110040,-1893.25,0.00017589,2]
[354286740,1740393110049,-1229.83,0.00017589,2]
[354286741,1740393110059,-1592.71,0.00017589,2]
[354286742,1740393110068,-1352.31,0.00017589,2]
[354286743,1740393110077,-2122.57,0.00017589,2]
[354286744,1740393110088,-1563.39,0.00017589,2]
[354286745,1740393110098,-500.0,0.00017589,2]
[354286746,1740393110107,-3181.44,0.00017589,2]
[354286747,1740393110117,-931.35,0.00017589,2]
[354286748,1740393110126,-1399.69,0.00017589,2]
[354286749,1740393110135,-1364.19,0.00017589,2]
[354286750,1740393110144,-1158.15,0.00017589,2]
[354286751,1740393110154,-947.59,0.00017589,2]
[354286752,1740393110163,-1055.82,0.00017589,2]
[354286753,1740393110172,-1743.38,0.00017589,2]
[354286754,1740393110182,-1124.16,0.00017589,2]
[354286755,1740393110191,-1245.15,0.00017589,2]
[354286756,1740393110200,-862.87,0.00017589,2]
[354286757,1740393110211,-737.22,0.00017589,2]
[354286758,1740393110220,-3379.84,0.00017589,2]
[354286759,1740393110230,-2190.52,0.00017589,2]
[354286760,1740393110240,-1993.18,0.00017589,2]
[354286761,1740393110249,-2255.32,0.00017589,2]
[354286762,1740393110258,-2112.38,0.00017589,2]
[354286763,1740393110268,-1406.66,0.00017589,2]
[354286764,1740393110278,-511.28,0.00017589,2]
[354286765,1740393110413,-1338.87,0.00017589,2]
[354286766,1740393110423,-1163.78,0.00017589,2]
[354286767,1740393110433,-899.89,0.00017589,2]
[354286768,1740393110442,-2575.6,0.00017589,2]
[354286769,1740393110451,-1931.36,0.00017589,2]
[354286770,1740393110461,-3875.26,0.00017589,2]
[354286771,1740393110470,-714.88,0.00017589,2]
[354286772,1740393110479,-4627.1,0.00017589,2]
[354286773,1740393110489,-651.74,0.00017589,2]
[354286774,1740393110498,-2331.1,0.00017589,2]
[354286775,1740393110507,-794.55,0.00017589,2]
[354286776,1740393110516,-811.87,0.00017589,2]
[354286777,1740393110526,-1360.35,0.00017589,2]
[354286778,1740393110535,-757.29,0.00017589,2]
[354286779,1740393110546,-1905.52,0.00017589,2]
[354286780,1740393110556,-500.0,0.00017589,2]
[354286781,1740393110566,-1012.51,0.00017589,2]
[354286782,1740393110575,-1832.68,0.00017589,2]
[354286783,1740393110585,-500.0,0.00017589,2]
[354286784,1740393110595,-1130.11,0.00017589,2]
[354286785,1740393110604,-500.0,0.00017589,2]
[354286786,1740393110613,-2153.01,0.00017589,2]
[354286787,1740393110622,-500.0,0.00017589,2]
[354286788,1740393110631,-1435.16,0.00017589,2]
[354286789,1740393110641,-2176.8,0.00017589,2]
[354286790,1740393110650,-1895.66,0.00017589,2]
[354286791,1740393110659,-683.14,0.00017589,2]
[354286792,1740393110668,-262.89227696,0.00017589,2]
[354286793,1740393110677,-1239.34,0.00017589,2]
[354286794,1740393110687,-2117.99,0.00017589,2]
[354286795,1740393110696,-2225.26,0.00017589,2]
[354286796,1740393110705,-1435.64,0.00017589,2]
[354286797,1740393110714,-876.4,0.00017589,2]
[354286798,1740393110723,-1250.73,0.00017589,2]
[354286799,1740393110733,-1238.73,0.00017589,2]
[354286800,1740393110742,-1448.82,0.00017589,2]
[354286801,1740393110751,-1222.74,0.00017589,2]
[354286802,1740393110761,-500.0,0.00017589,2]
[354286803,1740393110770,-2133.06,0.00017589,2]
[354286804,1740393110780,-500.0,0.00017589,2]
[354286805,1740393110789,-902.39,0.00017589,2]
[354286806,1740393110799,-2952.34,0.00017589,2]
[354286807,1740393110809,-637.55,0.00017589,2]
[354286808,1740393110818,-1714.23,0.00017589,2]
[354286809,1740393110827,-1345.12,0.00017589,2]
[354286810,1740393110837,-1346.53,0.00017589,2]
[354286811,1740393110846,-1153.09,0.00017589,2]
[354286812,1740393110857,-500.0,0.00017589,2]
[354286813,1740393110868,-1050.72,0.00017589,2]
[354286814,1740393110878,-1549.23,0.00017589,2]
[354286815,1740393110887,-500.0,0.00017589,2]
[354286816,1740393110896,-2116.78,0.00017589,2]
[354286817,1740393110907,-1323.73,0.00017589,2]
[354286818,1740393110916,-1976.05,0.00017589,2]
[354286819,1740393110925,-968.02,0.00017589,2]
[354286820,1740393110935,-2709.27,0.00017589,2]
[354286821,1740393110945,-1417.13,0.00017589,2]
[354286822,1740393110954,-649.11,0.00017589,2]
[354286823,1740393110964,-517.98,0.00017589,2]
[354286824,1740393110973,-1383.1,0.00017589,2]
[354286825,1740393110982,-575.9,0.00017589,2]
[354286826,1740393110991,-639.53,0.00017589,2]
[354286827,1740393111001,-2137.13,0.00017589,2]
[354286828,1740393111010,-1329.85,0.00017589,2]
[354286829,1740393111020,-2522.02,0.00017589,2]
[354286830,1740393111029,-500.0,0.00017589,2]
[354286831,1740393111038,-1057.9,0.00017589,2]
[354286832,1740393111047,-48708.64052809,0.0001759,30]
[354286833,1740393111056,-894306.26589287,0.000176,2]
[354286834,1740393111066,-2000.0,0.000176,2]
[354286835,1740393111076,-2000.0,0.000176,2]
[354286836,1740393111085,-2000.0,0.000176,2]
[354286837,1740393111094,-2000.0,0.000176,2]
[354286838,1740393111103,-2000.0,0.000176,2]
[354286839,1740393111112,-2000.0,0.000176,2]
[354286840,1740393111121,-2000.0,0.000176,2]
[354286841,1740393111130,-2000.0,0.000176,2]
[354286842,1740393111140,-2007.3813,0.000176,2]
[354286843,1740393111149,-2000.0,0.000176,2]
[354286844,1740393111158,-1472659.42564019,0.000176,2]
[354286845,1740393111167,-666130.42457991,0.000176,2]
[354286846,1740393111176,-265133.08764085,0.000176,3]
[354286847,1740393111185,-152.0,0.00017605,9]
[354286848,1740393111194,-927.18,0.00017664,2]
[354286849,1740393111203,-400.0,0.0001767,2]
[354286850,1740393111212,-567.68,0.00017671,2]
[354286851,1740393111221,-931.01,0.00017671,2]
[354286852,1740393111230,-500.0,0.00017671,2]
[354286853,1740393111239,-500.0,0.00017671,2]
[354286854,1740393111248,-500.0,0.00017671,2]
[354286855,1740393111258,-377.97420368,0.00017671,2]
[354286856,1740393111268,-500.0,0.00017671,2]
[354286857,1740393111277,-500.0,0.00017671,2]
[354286858,1740393111287,-513.04,0.00017671,2]
[354286859,1740393111296,-705.82,0.00017671,2]
[354286860,1740393111305,-500.0,0.00017671,2]
[354286861,1740393111314,-568.69,0.00017671,2]
[354286862,1740393111325,-500.0,0.00017671,2]
[354286863,1740393111344,-500.0,0.00017671,2]
[354286864,1740393111359,-613.91,0.00017671,2]
[354286865,1740393111377,-829.52,0.00017671,2]
[354286866,1740393111392,-614.79,0.00017671,2]
[354286867,1740393111408,-579.34,0.00017671,2]
[354286868,1740393111425,-656.83,0.00017671,2]
[354286869,1740393111444,-801.72,0.00017671,2]
[354286870,1740393111462,-500.0,0.00017671,2]
[354286871,1740393111480,-500.0,0.00017671,2]
[354286872,1740393111497,-778.26,0.00017671,2]
[354286873,1740393111513,-812.09,0.00017671,2]
[354286874,1740393111526,-563.47,0.00017671,2]
[354286875,1740393111544,-500.0,0.00017671,2]
[354286876,1740393111556,-594.42,0.00017671,2]
[354286877,1740393111572,-1017.59,0.00017671,2]
[354286878,1740393111586,-1173.0,0.00017671,2]
[354286879,1740393111603,-307.3312818,0.00017671,2]
[354286880,1740393111618,-985.36,0.00017671,2]
[354286881,1740393111633,-500.0,0.00017671,2]
[354286882,1740393111650,-714.1,0.00017671,2]
[354286883,1740393111666,-601.34,0.00017671,2]
[354286884,1740393111680,-1166.36,0.00017671,2]
[354286885,1740393111695,-500.0,0.00017671,2]
[354286886,1740393111710,-500.0,0.00017671,2]
[354286887,1740393111725,-655.58,0.00017671,2]
[354286888,1740393111739,-568.87,0.00017671,2]
[354286889,1740393111754,-500.0,0.00017671,2]
[354286890,1740393111768,-500.0,0.00017671,2]
[354286891,1740393111783,-817.86,0.00017671,2]
[354286892,1740393111797,-500.0,0.00017671,2]
[354286893,1740393111811,-554.61,0.00017671,2]
[354286894,1740393111826,-607.13,0.00017671,2]
[354286895,1740393111840,-587.42,0.00017671,2]
[354286896,1740393111858,-299.279106,0.00017671,2]
[354286897,1740393111874,-500.0,0.00017671,2]
[354286898,1740393111888,-500.0,0.00017671,2]
[354286899,1740393111904,-976.63,0.00017671,2]
[354286900,1740393111918,-758.07,0.00017671,2]
[354286901,1740393111932,-327.093108,0.00017671,2]
[354286902,1740393111949,-912.3,0.00017671,2]
[354286903,1740393111962,-966.44,0.00017671,2]
[354286904,1740393111976,-571.99,0.00017671,2]
[354286905,1740393111992,-583.89,0.00017671,2]
[354286906,1740393112006,-508.91,0.00017671,2]
[354286907,1740393112020,-500.0,0.00017671,2]